[Event "Italian-ch Women 2022"]
[Site "Cagliari"]
[Date "2022.11.18"]
[Round "2.2"]
[White "Cassi, Elisa"]
[Black "Sedina, Elena"]
[Result "1/2-1/2"]
[ECO "C09"]
[WhiteElo "1995"]
[BlackElo "2197"]
[Annotator "TA"]
[PlyCount "136"]
[EventDate "2022.11.17"]
[EventType "tourn"]
[EventCountry "ITA"]
[SourceTitle "playchess.com"]
[Source "ChessBase"]
[SourceQuality "1"]
[TimeControl "40/6000+30:20/3000:900+30"]

{[%evp 12,136,26,27,22,29,23,31,43,25,27,13,16,9,17,14,12,7,9,9,36,0,11,15,18,0,-3,-18,-23,-18,-18,-142,-130,-122,0,-14,-18,-25,-13,-55,-64,-61,0,-8,0,-8,-4,-9,-16,-16,-8,-8,-8,-28,-28,-47,-47,-47,-47,-58,-22,-22,-22,-22,-15,-22,-22,-22,-15,-22,-15,-22,-15,-22,-15,-22,-9,-9,-9,-9,-9,-9,-9,-9,-8,-9,-8,-8,-8,-8,-8,-8,-8,-8,-8,-8,0,-8,0,-8,-8,-8,-8,-8,-8,-8,-8,-8,-8,-8,-8,-8,-8,-8,0,0,0,0,0,-8,-8,-8,-8,-8,-8,-8,-8]} 1. e4 {[%emt 0:00:07]} e6 {[%emt 0:00:12]} 2. d4 {[%emt 0:00:25]} d5 {[%emt 0:00:06]} 3. Nd2 {[%emt 0:00:06]} c5 {[%emt 0:01:00]} 4. exd5 {[%emt 0:00:11]} exd5 {[%emt 0:00:16]} 5. Ngf3 {[%emt 0:00:07]} Nc6 {[%emt 0:00:48]} 6. Bb5 {[%emt 0:00:14]} Qe7+ $1 {[%emt 0:01:11][%mdl 4] is more profitable than 6...Bd6 at the moment.} 7. Be2 {[%emt 0:00:34]} Qc7 {[%emt 0:00:23] C09: French Tarrasch: 3...c5 4 exd5 exd5 5 Ngf3 Nc6.} 8. O-O {[%emt 0:00:26]} Nf6 {[%emt 0:00:21]} 9. Re1 {[%emt 0:01:04]} Be6 {[%emt 0:03:22] White is slightly better.} 10. Bf1 {[%emt 0:08:25]} h6 {[%emt 0:05:22]} 11. dxc5 {[%emt 0:04:37]} Bxc5 {[%emt 0:01:54]} 12. Nb3 {[%emt 0:01:22]} Bb6 {[%emt 0:01:20]} 13. Be3 {[%emt 0:09:25]} O-O {[%emt 0:02:53] [#]} 14. Bxb6 $146 {[%emt 0:02:46]} ({Predecessor:} 14. c3 Ne4 15. Nfd4 Rae8 16. f3 Nf6 17. Kh1 Bc8 18. Qd2 Ne5 19. Bf4 Nh5 20. Bb5 Re7 21. Rad1 a6 22. Bf1 Rfe8 23. Bxe5 Rxe5 24. Rxe5 Qxe5 25. Nc2 Ng3+ {0-1 (25) Zatonskih,A (2447)-Kashlinskaya,A (2459) Amsterdam 2018}) 14... Qxb6 {[%emt 0:09:27]} 15. Nfd4 {[%emt 0:00:36]} Ne4 {[%emt 0:06:44]} 16. f3 {[%emt 0:04:49]} Nd6 {[%emt 0:04:50]} 17. Kh1 {[%emt 0:05:17]} Rfe8 {[%emt 0:03:04]} 18. a4 {[%emt 0:03:49][%cal Ba2a4,Ba4a5][%mdl 32]} Nc4 {[%emt 0:14:19]} 19. Bxc4 {[%emt 0:14:17]} dxc4 {[%emt 0:26:02]} 20. a5 $1 {[%emt 0:01:37]} Qd8 {[%emt 0:02:41]} 21. Nxe6 {[%emt 0:07:21]} (21. Nxc6 $11 Qxd1 22. Rexd1) 21... Qxd1 $17 {[%emt 0:10:56]} 22. Rexd1 {[%emt 0:00:12] [#] Black must now prevent Nc7.} Rxe6 {[%emt 0:00:04]} (22... cxb3 $17 23. Nc7 bxc2) 23. Nc5 {[%emt 0:11:24]} (23. Nd4 $5 {[%cal Rd4e6]} Nxd4 24. Rxd4 $11) 23... Re2 {[%emt 0:00:20]} 24. Nxb7 {[%emt 0:02:12]} Rxc2 {[%emt 0:00:04]} 25. Rac1 {[%emt 0:03:30]} (25. Rdc1 $5 {[%cal Rc1c2]} Rxb2 26. Rxc4 $15 (26. Nd6 c3 $15)) 25... Rxb2 {[%emt 0:03:11]} 26. Rxc4 {[%emt 0:01:18]} Rxb7 {[%emt 0:01:31]} (26... Ne5 $15 27. Rc7 Rb8) 27. Rxc6 $15 {[%emt 0:00:08][%mdl 4096] Endgame KRR-KRR} Rab8 {[%emt 0:00:05]} 28. h4 {[%emt 0:06:02]} Rb4 {[%emt 0:11:01]} 29. Rd7 {[%emt 0:02:10]} Rxh4+ {[%emt 0:00:30]} 30. Kg1 {[%emt 0:00:04]} Ra4 {[%emt 0:00:20]} 31. Rxa7 {[%emt 0:00:48]} Rb2 {[%emt 0:00:50]} 32. Rb6 {[%emt 0:11:10] [#]} Rxa5 $1 {[%emt 0:00:48] Threatens to win with ...Rxg2+.} 33. Rxa5 {[%emt 0:01:16]} (33. Rxb2 Rxa7) 33... Rxb6 $11 {[%emt 0:00:01] KR-KR} 34. Kf2 {[%emt 0:00:09]} Rb2+ {[%emt 0:00:15]} 35. Kg3 {[%emt 0:00:34]} g5 {[%emt 0:00:50]} 36. Kh3 {[%emt 0:02:37] The position is equal.} Kg7 {[%emt 0:00:29]} 37. g4 {[%emt 0:00:49]} Kg6 {[%emt 0:00:33]} 38. Kg3 {[%emt 0:00:59]} Rb3 {[%emt 0:00:32]} 39. Rc5 {[%emt 0:01:41]} Rb6 {[%emt 0:00:42]} 40. Ra5 {[%emt 0:00:27]} Rd6 {[%emt 0:00:29]} 41. Rb5 {[%emt 0:50:22]} Ra6 {[%emt 0:49:26]} 42. Rc5 {[%emt 0:00:00]} f6 {[%emt 0:00:00]} 43. Rb5 {[%emt 0:00:00]} h5 {[%emt 0:00:00]} 44. gxh5+ {[%emt 0:00:00]} Kxh5 {[%emt 0:00:00]} 45. f4 {[%emt 0:00:00]} Ra3+ {[%emt 0:00:00]} 46. Kg2 {[%emt 0:00:00]} Kh4 {[%emt 0:00:00]} 47. fxg5 {[%emt 0:00:00]} Rg3+ {[%emt 0:00:00]} 48. Kf2 {[%emt 0:00:00] Strongly threatening Rb4+.} Rxg5 {[%emt 0:00:00]} (48... fxg5 $5 {[%cal Rh4h3]} 49. Rb8 Kh3 $11) 49. Rb1 {[%emt 0:00:00]} Rg4 {[%emt 0:00:00]} 50. Kf3 {[%emt 0:00:00]} Kg5 {[%emt 0:00:00]} 51. Rb5+ {[%emt 0:00:00]} f5 {[%emt 0:00:00]} 52. Rb8 {[%emt 0:00:00]} Rf4+ {[%emt 0:00:00]} 53. Kg3 {[%emt 0:00:00] White threatens Rg8+ and mate.} Rg4+ {[%emt 0:00:00]} 54. Kf3 {[%emt 0:00:00]} Rf4+ {[%emt 0:00:00]} 55. Kg3 $1 {[%emt 0:00:00] White wants to mate with Rg8+.} Re4 {[%emt 0:00:00]} 56. Kf3 {[%emt 0:00:00]} Re6 {[%emt 0:00:00]} 57. Rg8+ {[%emt 0:00:00]} Kf6 {[%emt 0:00:00]} 58. Kf4 {[%emt 0:00:00]} Re4+ {[%emt 0:00:00]} 59. Kf3 {[%emt 0:00:00]} Rd4 {[%emt 0:00:00]} 60. Rf8+ {[%emt 0:00:00]} Ke6 {[%emt 0:00:00]} 61. Re8+ {[%emt 0:00:00]} Kf7 {[%emt 0:00:00]} 62. Ra8 {[%emt 0:00:00]} Kf6 {[%emt 0:00:00]} 63. Rf8+ {[%emt 0:00:00]} Kg6 {[%emt 0:00:00]} 64. Rg8+ {[%emt 0:00:00]} Kf7 {[%emt 0:00:00]} 65. Ra8 {[%emt 0:00:00]} Ke7 {[%emt 0:00:00]} 66. Ra6 {[%emt 0:00:00]} Re4 {[%emt 0:00:00]} 67. Rb6 {[%emt 0:00:00]} Re6 {[%emt 0:00:00]} 68. Rxe6+ {[%emt 0:00:00]} Kxe6 {[%emt 0:00:00] Weighted Error Value: White=0.08 (flawless) /Black=0.09 (flawless)} 1/2-1/2

[Event "Italian-ch Women 2022"]
[Site "Cagliari"]
[Date "2022.11.18"]
[Round "2.3"]
[White "Brunello, Marina"]
[Black "Raccanello, Marianna"]
[Result "1/2-1/2"]
[ECO "A04"]
[WhiteElo "2337"]
[BlackElo "2062"]
[Annotator "TA"]
[PlyCount "80"]
[EventDate "2022.11.17"]
[EventType "tourn"]
[EventCountry "ITA"]
[SourceTitle "playchess.com"]
[Source "ChessBase"]
[SourceQuality "1"]
[TimeControl "40/6000+30:20/3000:900+30"]

{[%evp 17,80,0,0,-22,-22,-27,-8,-37,-41,-39,-12,-27,-18,-19,-6,0,-18,-15,23,-12,-10,-38,-34,-35,-31,-54,-36,-47,-25,-71,-53,-49,-38,-42,-31,-20,-25,-62,-41,-136,-135,-110,-27,-195,-189,-423,-212,-217,-204,-368,-338,-526,-525,-522,-460,-502,-266,-259,0,-491,0,-266,0,-454,0]} 1. e4 {[%emt 0:00:53]} c5 {[%emt 0:00:05]} 2. Nf3 {[%emt 0:00:10]} e6 {[%emt 0:00:05]} 3. d3 {[%emt 0:00:13]} Nc6 {[%emt 0:01:24]} 4. g3 {[%emt 0:00:08]} g6 {[%emt 0:03:41]} 5. Bg2 {[%emt 0:00:38]} Bg7 {[%emt 0:00:05]} 6. O-O {[%emt 0:00:12]} Nge7 {[%emt 0:00:24]} 7. Na3 {[%emt 0:00:12][%cal Bb1a3,Ba3c4,Bc4e3,Be3d5][%mdl 32]} d6 {[%emt 0:02:25]} 8. c3 {[%emt 0:02:49]} e5 {[%emt 0:13:20]} 9. Nc4 {[%emt 0:14:51]} O-O {[%emt 0:00:53]} 10. Rb1 {[%emt 0:00:26] [#] A04: Unusual lines after 1 Nf3 and King's Indian Attack.} b5 $146 {[%emt 0:07:27][%cal Bb7b5,Bb5b4][%mdl 32]} ({Predecessor:} 10... h6 11. b4 cxb4 12. cxb4 b5 13. Ne3 Be6 14. a3 d5 15. exd5 Nxd5 16. Nxd5 Bxd5 17. Be3 Nd4 18. Nxd4 exd4 {1-0 (46) Harika,D (2494)-Javakhishvili,L (2464) St Petersburg 2018}) 11. Ne3 {[%emt 0:11:54]} a5 {[%emt 0:02:12]} 12. a4 {[%emt 0:03:22] The position is equal.} b4 {[%emt 0:10:13]} 13. Re1 {[%emt 0:09:31]} h6 {[%emt 0:05:46]} 14. Nd2 {[%emt 0:03:58]} Rb8 {[%emt 0:01:08]} 15. Ra1 {[%emt 0:11:36]} Be6 {[%emt 0:02:17]} 16. Nd5 {[%emt 0:01:34]} f5 {[%emt 0:07:21]} 17. Nc4 {[%emt 0:04:48]} Kh7 {[%emt 0:10:18]} 18. Bd2 {[%emt 0:02:41]} Bg8 {[%emt 0:02:10]} 19. f4 {[%emt 0:14:19]} Nxd5 {[%emt 0:13:24]} 20. exd5 {[%emt 0:00:05]} Ne7 {[%emt 0:00:07]} 21. fxe5 {[%emt 0:01:52]} dxe5 {[%emt 0:00:14]} 22. d6 {[%emt 0:00:27]} Nd5 {[%emt 0:00:57]} 23. Rc1 {[%emt 0:06:37]} (23. Qe2 $11) 23... Re8 $17 {[%emt 0:04:01]} 24. Qe2 {[%emt 0:04:03]} Nb6 {[%emt 0:04:19]} 25. Nxa5 {[%emt 0:00:30]} Qxd6 {[%emt 0:00:09] ...bxc3 is the strong threat.} 26. cxb4 {[%emt 0:00:23]} cxb4 {[%emt 0:02:14]} 27. Nc6 {[%emt 0:00:53]} Rbc8 {[%emt 0:00:44]} 28. Bxb4 {[%emt 0:04:51]} (28. Nxb4 $15 Rxc1 29. Rxc1) 28... Qd7 {[%emt 0:00:18] Hoping for ...Nd5.} 29. Ba3 {[%emt 0:01:23]} ({Wrong is} 29. a5 $2 Nd5 30. Bxd5 Bxd5 $19) 29... Nxa4 {[%emt 0:03:45]} (29... e4 $1 $17 {[%cal Re4d3]} 30. Nb4 Rxc1 31. Rxc1 Nxa4) 30. Nb4 {[%emt 0:01:10] [#]} (30. Qc2 $1 $11 Nb6 31. Qc5) 30... Nc5 $1 $19 {[%emt 0:06:36]} 31. Red1 $2 {[%emt 0:03:47]} (31. Nd5 {might work better.}) 31... Nb3 {[%emt 0:00:26]} (31... e4 $142 {White must now prevent ...exd3.} 32. dxe4 Bd4+ 33. Kh1 Nxe4 34. Bxe4 Rxe4) 32. Rxc8 {[%emt 0:01:15]} Rxc8 {[%emt 0:00:05]} 33. Qf3 $2 {[%emt 0:01:09]} (33. Kh1) 33... Nd4 {[%emt 0:01:48]} 34. Qb7 {[%emt 0:00:05]} (34. Qf1 {keeps fighting.}) 34... Rc7 {[%emt 0:01:03]} 35. Qa8 {[%emt 0:01:07]} Bb3 {[%emt 0:02:26]} 36. Rf1 {[%emt 0:01:45]} Nb5 {[%emt 0:03:05][%cal Oe5e4] [#] And now ...e4! would win.} 37. Qf3 {[%emt 0:01:29]} Nd4 $2 {[%emt 0:01:01]} (37... Bf7 38. Kh1 h5) 38. Qa8 $1 {[%emt 0:00:09]} Nb5 {[%emt 0:00:04]} (38... e4 $142 39. dxe4 Rc8) 39. Qf3 $1 {[%emt 0:00:04]} Nd4 $2 {[%emt 0:00:20]} (39... Bf7 40. Kh1 h5) 40. Qa8 $1 {[%emt 0:00:11]} Nb5 $2 {[%emt 0:01:08] Weighted Error Value: White=0.36/Black=0.54} (40... e4 $19 41. dxe4 Rc8) 1/2-1/2

[Event "Italian-ch Women 2022"]
[Site "Cagliari"]
[Date "2022.11.18"]
[Round "2.4"]
[White "Gabbani, Sara"]
[Black "Martinelli, Valeria"]
[Result "0-1"]
[ECO "D94"]
[WhiteElo "1844"]
[BlackElo "2008"]
[Annotator "TA"]
[PlyCount "70"]
[EventDate "2022.11.17"]
[EventType "tourn"]
[EventCountry "ITA"]
[SourceTitle "playchess.com"]
[Source "ChessBase"]
[SourceQuality "1"]
[TimeControl "40/6000+30:20/3000:900+30"]

{[%evp 12,70,21,14,20,20,12,9,16,0,0,-1,-9,0,0,-18,-12,-31,-30,-135,-122,-124,-133,-127,-131,-145,-144,-218,-243,-241,-233,-237,-235,-588,-510,-591,-553,-629,-620,-700,-558,-560,-539,-552,-494,-492,-492,-447,-326,-679,-648,-924,-929,-929,-934,-1417,-1449,-29979,-29980,-2160,-1364]} 1. d4 {[%emt 0:00:09]} Nf6 {[%emt 0:00:15]} 2. c4 {[%emt 0:00:38]} g6 {[%emt 0:00:17]} 3. Nf3 {[%emt 0:00:13]} Bg7 {[%emt 0:00:13]} 4. e3 {[%emt 0:00:21]} c6 {[%emt 0:00:21]} 5. Nc3 {[%emt 0:02:38]} d5 {[%emt 0:01:26]} 6. h3 {[%emt 0:02:19]} O-O {[%emt 0:02:52]} 7. Be2 {[%emt 0:01:10]} Nbd7 {[%emt 0:16:23] 7...a6 might become the main line. D94: Grünfeld: 4 Nf3 Bg7 5 e3.} 8. O-O {[%emt 0:02:08]} e6 {[%emt 1:22:43]} 9. Qc2 {[%emt 0:08:27]} b6 {[%emt 0:00:30][%cal Bb7b6,Bb6c5,Bc5d4][%mdl 32] The position is equal.} 10. e4 {[%emt 1:27:27]} Nxe4 {[%emt 0:00:00]} 11. Nxe4 {[%emt 0:00:00]} dxe4 {[%emt 0:01:00]} 12. Qxe4 {[%emt 0:01:00]} Bb7 {[%emt 0:00:30] [#]} 13. Bf4 $146 {[%emt 0:00:30] Inhibits Rb8.} ({Predecessor:} 13. Bg5 Qc8 14. Qh4 Re8 15. Rad1 f6 16. Bh6 Qd8 17. Bxg7 Kxg7 18. Rd2 Qe7 19. Rfd1 {½-½ (25) Funk,P (2197)-Malich,B (2393) Halle 2007}) 13... Qc8 {[%emt 0:00:30] With the idea ...c5.} 14. c5 {[%emt 0:00:30]} bxc5 {[%emt 0:00:00]} 15. Bd6 {[%emt 0:00:30] [#] White is on the road to losing.} (15. dxc5 $11 Nxc5 16. Qc2) 15... cxd4 $1 $17 {[%emt 0:00:00] Threatens to win with ...Re8.} 16. Bxf8 {[%emt 0:00:00]} c5 {[%emt 0:01:30]} 17. Qh4 {[%emt 0:00:00]} Qxf8 18. Rac1 {[%emt 0:01:30]} e5 {[%emt 0:01:00]} 19. Bc4 {[%emt 0:00:00]} (19. b4 $17 {keeps fighting.}) 19... Bxf3 $19 {[%emt 0:00:00]} 20. gxf3 {[%emt 0:00:00]} Bh6 {[%emt 0:00:00][%cal Bg7h6,Bh6f4,Bf4g5][%mdl 32]} 21. Rc2 {[%emt 0:00:00]} Bf4 {[%emt 0:00:00] [#] And now ...h5 would win.} 22. Rd1 $2 {[%emt 0:00:00]} (22. Qg4 {is tougher.} Nb6 23. Bd3) 22... h5 {[%emt 0:00:00]} 23. Kh1 {[%emt 0:00:00]} Kg7 {[%emt 0:00:00] aiming for ...Kh6.} 24. Rg1 {[%emt 0:00:00]} Kh6 {[%emt 0:00:00]} 25. Bd3 {[%emt 0:00:00]} g5 {[%emt 0:00:00]} 26. Rxg5 {[%emt 0:00:00]} Bxg5 {[%emt 0:00:27]} 27. Qe4 {[%emt 0:04:30][%csl Gd3][%cal Re4h7]} f5 {[%emt 0:00:34][%cal Bf7f5,Bf5e4][%mdl 32]} 28. Qc6+ {[%emt 0:00:00]} Nf6 {[%emt 0:00:30]} 29. Rxc5 {[%emt 0:00:00]} Qe8 {[%emt 0:01:27] ...e4 is the strong threat.} 30. Qa6 $2 {[%emt 0:00:00]} (30. Qc7) 30... e4 {[%emt 0:01:11]} 31. fxe4 {[%emt 0:00:00]} fxe4 {[%emt 0:00:30]} 32. Bb5 {[%emt 0:00:00]} Qe7 {[%emt 0:00:05]} 33. Rc6 {[%emt 0:00:00]} Qe5 {[%emt 0:01:09]} 34. Re6 {[%emt 0:00:00]} Qf5 {[%emt 0:00:21][%csl LRf2,LRh3]} 35. Bf1 {[%emt 0:00:00]} Rb8 {[%emt 0:01:07] Weighted Error Value: White=1.07/Black=0.16 (very precise)} 0-1

[Event "Italian-ch Women 2022"]
[Site "Cagliari"]
[Date "2022.11.19"]
[Round "3.1"]
[White "Martinelli, Valeria"]
[Black "Zimina, Olga"]
[Result "0-1"]
[ECO "C55"]
[WhiteElo "2008"]
[BlackElo "2283"]
[Annotator "TA"]
[PlyCount "44"]
[EventDate "2022.11.17"]
[EventType "tourn"]
[EventCountry "ITA"]
[SourceTitle "playchess.com"]
[Source "ChessBase"]
[SourceQuality "1"]
[TimeControl "40/6000+30:20/3000:900+30"]

{[%evp 9,44,31,33,30,36,35,35,0,2,6,9,-68,-57,-61,-67,-173,-155,-167,-156,-263,-179,-185,-185,-263,-202,-198,-186,-181,-192,-329,-323,-479,-486,-740,-729,-734,-722]} 1. e4 {[%emt 1:41:00]} e5 {[%emt 0:02:38]} 2. Nf3 {[%emt 0:00:00]} Nc6 {[%emt 0:00:12]} 3. Bc4 {[%emt 0:00:00]} Nf6 {[%emt 0:00:04]} 4. d3 {[%emt 0:00:00]} h6 {[%emt 0:02:02]} 5. c3 {[%emt 0:00:00]} d6 {[%emt 0:00:11]} 6. a4 {[%emt 0:00:00] C55: Two Knights: 4 d3, 4 d4 exd4 5 e5 and Max Lange Attack.} g5 {[%emt 0:00:44]} 7. h3 {[%emt 0:00:00]} Bg7 {[%emt 0:00:13]} 8. b4 {[%emt 0:00:00] White is slightly better.} Ne7 {[%emt 0:07:07] [#]} 9. Bb3 $146 {[%emt 0:00:00]} ({Predecessor:} 9. a5 Ng6 10. g3 c6 11. Nbd2 O-O 12. Kf1 d5 13. Bb3 g4 14. hxg4 Bxg4 15. Qc2 {1-0 (81) Florescu,C (2293)-Demin,V (2430) Chess.com INT 2020}) 9... Ng6 {[%emt 0:00:39]} 10. Na3 {[%emt 0:00:00]} (10. O-O $11) 10... d5 $15 {[%emt 0:01:44]} 11. Qe2 {[%emt 0:00:00]} Be6 {[%emt 0:04:13] ...dxe4 is the strong threat.} 12. exd5 {[%emt 0:00:00]} (12. c4 $15 dxe4 13. dxe4) 12... Nxd5 $19 {[%emt 0:00:41] And now ...Ndf4 would win.} 13. Bxd5 {[%emt 0:00:00]} Qxd5 {[%emt 0:01:29]} (13... Bxd5 14. O-O $17) 14. Nb5 {[%emt 0:00:00]} (14. O-O $17 {keeps fighting.}) 14... Qd7 {[%emt 0:10:06]} 15. O-O {[%emt 0:00:00]} O-O {[%emt 0:20:52]} 16. Be3 {[%emt 0:00:00]} (16. d4 $142 Qc6 17. Qe3) 16... a6 {[%emt 0:03:37]} 17. Na3 {[%emt 0:00:00]} Rad8 {[%emt 0:00:34]} 18. d4 {[%emt 0:00:00] [#]} e4 {[%emt 0:03:04]} (18... Qxa4 19. Nxe5 Bxe5 20. dxe5 $17) 19. Nd2 {[%emt 0:00:00]} (19. Ne5 {was worth a try.} Nxe5 20. dxe5) 19... f5 {[%emt 0:00:21]} (19... Qxa4 20. Nxe4 b6 21. Qd3 $15) 20. f4 {[%emt 0:00:00]} (20. Nc2 {was called for.}) 20... gxf4 {[%emt 0:00:24] Black is clearly winning.} ({Stronger than} 20... Qxa4 21. fxg5 f4 22. Nxe4 (22. Qh5 $2 Qe8 $19) 22... fxe3 23. Nf6+ Kh8 24. b5 $17) 21. Bxf4 {[%emt 0:00:00]} (21. Bf2 $142) 21... Nxf4 {[%emt 0:00:14]} ({Not} 21... Qxa4 22. Bxc7 Rc8 23. Nac4 $19) 22. Rxf4 {[%emt 0:00:00] [#]} Bxd4+ $1 {[%emt 0:00:32][%mdl 512] Black took control after the opening.   Weighted Error Value: White=0.65/Black=0.11 (very precise)} 0-1

[Event "Italian-ch Women 2022"]
[Site "Cagliari"]
[Date "2022.11.19"]
[Round "3.2"]
[White "Raccanello, Marianna"]
[Black "Gabbani, Sara"]
[Result "0-1"]
[ECO "B36"]
[WhiteElo "2062"]
[BlackElo "1844"]
[Annotator "TA"]
[PlyCount "112"]
[EventDate "2022.11.17"]
[EventType "tourn"]
[EventCountry "ITA"]
[SourceTitle "playchess.com"]
[Source "ChessBase"]
[SourceQuality "1"]
[TimeControl "40/6000+30:20/3000:900+30"]

{[%evp 18,112,41,22,50,50,41,33,36,20,20,25,24,20,24,33,33,0,0,-43,-28,-41,-30,-21,-21,-27,-24,-20,-35,-62,-60,-104,-107,-141,-139,-138,-141,-141,-141,-148,-156,-148,-137,-140,-157,-154,-113,-175,-156,-427,-427,-425,-367,-400,-413,-362,-368,-574,-564,-600,-575,-530,-355,-413,-363,-347,-345,-584,-581,-547,-525,-638,-620,-608,-599,-580,-591,-580,-572,-573,-569,-699,-634,-752,-728,-6460,-5685,-2139,-1949,-12843,-12843,-29997,-29993,-29997,-29998,-29998,-29999]} 1. e4 {[%emt 0:00:09]} c5 {[%emt 0:00:16]} 2. Nf3 {[%emt 0:00:06]} Nc6 {[%emt 0:00:09]} 3. d4 {[%emt 0:00:12]} cxd4 {[%emt 0:00:20]} 4. Nxd4 {[%emt 0:00:11]} g6 {[%emt 0:00:27]} 5. c4 {[%emt 0:00:20]} Nf6 {[%emt 0:00:08]} 6. Nc3 {[%emt 0:00:10]} Nxd4 {[%emt 0:00:08]} 7. Qxd4 {[%emt 0:00:11]} d6 {[%emt 0:00:06]} 8. Be2 {[%emt 0:00:24]} Bg7 {[%emt 0:00:08]} 9. Be3 {[%emt 0:00:09]} O-O {[%emt 0:00:07]} 10. Qd2 {[%emt 0:00:18]} a5 {[%emt 0:00:30] B36: Sicilian: Maroczy Bind: Gurgenidze System.} 11. O-O {[%emt 0:04:25]} a4 {[%emt 0:00:25]} 12. Bd4 {[%emt 0:00:23] is recently more successful than 12.f3.} Qa5 {[%emt 0:01:11] White is slightly better.} 13. Qe3 {[%emt 0:06:32]} Be6 {[%emt 0:25:52]} 14. Nb5 {[%emt 0:12:34][%cal Ob2b4] [#]} Nd7 $146 {[%emt 0:14:08]} ({Predecessor:} 14... Bd7 15. b4 axb3 16. axb3 Qb4 17. e5 Nd5 18. cxd5 Rxa1 19. Rxa1 Bxb5 20. Bxb5 Qxb5 21. exd6 Bxd4 22. Qxd4 exd6 {½-½ (31) Fridman,D (2630)-Parligras,M (2611) Dresden 2008}) 15. f4 {[%emt 0:05:13] [#] f5 is the strong threat.} Bxd4 {[%emt 0:16:34]} 16. Nxd4 {[%emt 0:12:49] Strongly threatening f5.} Nf6 {[%emt 0:07:54]} 17. Nxe6 {[%emt 0:09:42]} fxe6 {[%emt 0:00:29][%cal Bf7e6,Be6e5][%mdl 32]} 18. Rad1 {[%emt 0:04:49]} e5 {[%emt 0:04:43]} 19. f5 {[%emt 0:01:22]} Qc5 {[%emt 0:05:15]} 20. Qxc5 {[%emt 0:01:16]} dxc5 {[%emt 0:00:01]} 21. fxg6 {[%emt 0:06:51]} hxg6 {[%emt 0:00:12]} 22. Bf3 {[%emt 0:02:16]} Rfd8 {[%emt 0:04:35]} 23. Rfe1 {[%emt 0:03:43]} Rd4 {[%emt 0:05:55]} 24. Rxd4 {[%emt 0:00:10]} cxd4 $15 {[%emt 0:00:47][%mdl 4096] Endgame KRB-KRN} 25. Bd1 {[%emt 0:08:09]} Nd7 {[%emt 0:04:33]} 26. Kf2 {[%emt 0:10:55]} Nc5 {[%emt 0:01:57]} 27. Bc2 {[%emt 0:03:49] Against Nd3+} Rd8 {[%emt 0:02:46]} 28. Rd1 {[%emt 0:01:35]} Kg7 {[%emt 0:02:13]} 29. Ke2 {[%emt 0:00:08] Against d3+} Rh8 {[%emt 0:01:24]} 30. h3 {[%emt 0:01:07]} Rh4 {[%emt 0:01:14]} 31. Re1 {[%emt 0:01:29]} Kf6 {[%emt 0:03:29] Black is more active.} 32. Kd2 {[%emt 0:02:14]} (32. Rf1+ $17 Ke6 33. Rf3) 32... Rf4 {[%emt 0:01:16] aiming for ...Kg5.} 33. Re2 $2 {[%emt 0:00:29] This costs White the game.} (33. b4 $17 {was necessary.} axb3 34. axb3) 33... Kg5 $19 {[%emt 0:00:34]} 34. b4 {[%emt 0:00:28]} axb3 $1 {[%emt 0:00:08]} 35. axb3 {[%emt 0:00:05]} Kh4 {[%emt 0:02:04]} 36. b4 {[%emt 0:04:11] [#]} Na6 {[%emt 0:00:41]} 37. b5 {[%emt 0:01:00]} (37. Ke1 $142 Nxb4 38. Bb1) 37... Nc5 {[%emt 0:00:28]} 38. Bb1 {[%emt 0:00:16]} Kg3 {[%emt 0:00:24]} 39. Ke1 {[%emt 0:00:15]} Na4 {[%emt 0:03:01]} 40. Bc2 {[%emt 0:03:41]} Nb2 {[%emt 0:03:02]} 41. c5 {[%emt 0:50:43]} Rf8 {[%emt 0:11:19]} 42. c6 $2 {[%emt 0:00:00]} (42. Rd2 Nc4 43. Rd3+ Ne3 44. Bb3) 42... bxc6 {[%emt 0:01:11]} (42... d3 $2 43. Re3+ Kh2 44. Bxd3 $18) 43. bxc6 {[%emt 0:00:00]} Rc8 {[%emt 0:03:11]} 44. Bb3 {[%emt 0:00:00]} Nd3+ {[%emt 0:01:16]} 45. Kd2 {[%emt 0:00:00]} Nf4 {[%emt 0:03:18]} 46. Re1 {[%emt 0:00:00]} Rxc6 {[%emt 0:00:00]} 47. Ra1 {[%emt 0:00:00]} Nxg2 {[%emt 0:02:32]} 48. Ra7 {[%emt 0:00:00]} e6 {[%emt 0:01:56]} 49. Rg7 {[%emt 0:00:00]} Nf4 {[%emt 0:00:34]} 50. Ba4 {[%emt 0:00:00]} Ra6 {[%emt 0:00:15]} 51. Be8 {[%emt 0:00:00]} Ra2+ {[%emt 0:00:11]} 52. Kd1 {[%emt 0:00:00]} Kf3 {[%emt 0:05:33]} 53. Bc6 {[%emt 0:00:00]} Ke3 {[%emt 0:00:08] ( -> ...Nd3)} 54. Rb7 {[%emt 0:00:00]} d3 {[%emt 0:00:16] Black mates.} 55. Rb1 {[%emt 0:00:00]} Rd2+ {[%emt 0:00:56]} 56. Ke1 {[%emt 0:00:00]} Rh2 {[%emt 0:00:00] Weighted Error Value: White=0.64/Black=0.08 (flawless)} 0-1